[Event "Titled Tuesday Blitz August 1 Early 2023"]
[White "ChesscularGodofchess"]
[Black "Streltsov, Alexey"]
[BlackFideId "24104434"]
[WhiteElo "2176"]
[BlackElo "2541"]
[Result "0-1"]
[Round "1"]
[TimeControl "180+1"]
[Date "2023.08.01"]
[WhiteClock "0:00:10"]
[BlackClock "0:01:13"]
[Board "229"]

1. d4 {[%clk 0:02:50]}  d5 {[%clk 0:02:59]} 2. Nf3 {[%clk 0:02:50]}  e6 {[%clk 0:02:58]} 3. e3 {[%clk 0:02:48]}  c5 {[%clk 0:02:58]} 4. Nbd2 {[%clk 0:02:47]}  Nc6 {[%clk 0:02:58]} 5. b3 {[%clk 0:02:47]}  Nf6 {[%clk 0:02:57]} 6. Bb2 {[%clk 0:02:45]}  b6 {[%clk 0:02:57]} 7. Bb5 {[%clk 0:02:42]}  Bd7 {[%clk 0:02:57]} 8. O-O {[%clk 0:02:25]}  Bd6 {[%clk 0:02:56]} 9. dxc5 {[%clk 0:02:09]}  bxc5 {[%clk 0:02:55]} 10. Bxf6 {[%clk 0:02:05]}  gxf6 {[%clk 0:02:49]} 11. c4 {[%clk 0:02:02]}  d4 {[%clk 0:02:41]} 12. exd4 {[%clk 0:01:58]}  Nxd4 {[%clk 0:02:40]} 13. Nxd4 {[%clk 0:01:54]}  cxd4 {[%clk 0:02:41]} 14. Ne4 {[%clk 0:01:45]}  Bxb5 {[%clk 0:02:37]} 15. cxb5 {[%clk 0:01:39]}  Ke7 {[%clk 0:02:33]} 16. Rc1 {[%clk 0:01:31]}  f5 {[%clk 0:02:32]} 17. Ng5 {[%clk 0:01:25]}  f6 {[%clk 0:02:11]} 18. Nxe6 {[%clk 0:00:54]}  Kxe6 {[%clk 0:02:11]} 19. Re1+ {[%clk 0:00:52]}  Be5 {[%clk 0:01:55]} 20. Rc6+ {[%clk 0:00:46]}  Kd7 {[%clk 0:01:49]} 21. f4 {[%clk 0:00:40]}  Qe7 {[%clk 0:01:44]} 22. Qf3 {[%clk 0:00:32]}  Rhf8 {[%clk 0:01:34]} 23. fxe5 {[%clk 0:00:29]}  Qb4 {[%clk 0:01:22]} 24. Qd5+ {[%clk 0:00:22]}  Ke8 {[%clk 0:01:22]} 25. Qe6+ {[%clk 0:00:17]}  Qe7 {[%clk 0:01:16]} 26. Qxe7+ {[%clk 0:00:17]}  Kxe7 {[%clk 0:01:17]} 27. exf6+ {[%clk 0:00:17]}  Kf7 {[%clk 0:01:17]} 28. Re7+ {[%clk 0:00:17]}  Kg6 {[%clk 0:01:16]} 29. Rf7 {[%clk 0:00:15]}  Rxf7 {[%clk 0:01:16]} 30. h3 {[%clk 0:00:13]}  Rxf6 {[%clk 0:01:12]} 31. Rc7 {[%clk 0:00:13]}  Rd8 {[%clk 0:01:12]} 32. Kf1 {[%clk 0:00:13]}  d3 {[%clk 0:01:12]} 33. Ke1 {[%clk 0:00:14]}  Re6+ {[%clk 0:01:12]} 34. Kd2 {[%clk 0:00:14]}  Re2+ {[%clk 0:01:12]} 35. Kd1 {[%clk 0:00:15]}  Rxg2 {[%clk 0:01:13]} 36. Rxa7 {[%clk 0:00:14]}  d2 {[%clk 0:01:13]} 37. Rc7 {[%clk 0:00:10]}  Rg1+ {[%clk 0:01:13]} 0-1


[Site "https://www.chess.com"]

[Event "Titled Tuesday Blitz August 1 Early 2023"]
[White "To, Nhat Minh"]
[Black "Da Matta, Eduardo Cesar"]
[WhiteFideId "729019"]
[BlackFideId "2193108"]
[WhiteElo "2540"]
[BlackElo "2175"]
[Result "1-0"]
[Round "1"]
[TimeControl "180+1"]
[Date "2023.08.01"]
[WhiteClock "0:01:23"]
[BlackClock "0:00:09"]
[Board "230"]

1. e4 {[%clk 0:02:56]}  c5 {[%clk 0:02:31]} 2. b3 {[%clk 0:02:55]}  Nf6 {[%clk 0:02:30]} 3. e5 {[%clk 0:02:54]}  Nd5 {[%clk 0:02:29]} 4. Bb2 {[%clk 0:02:55]}  e6 {[%clk 0:02:12]} 5. Nc3 {[%clk 0:02:54]}  d6 {[%clk 0:02:10]} 6. Nf3 {[%clk 0:02:45]}  Nc6 {[%clk 0:02:08]} 7. exd6 {[%clk 0:02:39]}  Bxd6 {[%clk 0:02:08]} 8. Bb5 {[%clk 0:02:22]}  O-O {[%clk 0:02:05]} 9. Bxc6 {[%clk 0:02:21]}  bxc6 {[%clk 0:02:05]} 10. Ne4 {[%clk 0:02:14]}  Be7 {[%clk 0:02:03]} 11. O-O {[%clk 0:02:10]}  f5 {[%clk 0:02:00]} 12. Ng3 {[%clk 0:02:10]}  Bf6 {[%clk 0:01:59]} 13. Ne5 {[%clk 0:02:06]}  Qc7 {[%clk 0:01:55]} 14. Re1 {[%clk 0:02:06]}  Bd7 {[%clk 0:01:50]} 15. Nh5 {[%clk 0:02:04]}  Rae8 {[%clk 0:01:41]} 16. Qf3 {[%clk 0:01:57]}  g6 {[%clk 0:01:33]} 17. Nxf6+ {[%clk 0:01:52]}  Nxf6 {[%clk 0:01:34]} 18. Re2 {[%clk 0:01:40]}  Ne4 {[%clk 0:01:18]} 19. d3 {[%clk 0:01:37]}  Nf6 {[%clk 0:01:17]} 20. Rae1 {[%clk 0:01:35]}  Qc8 {[%clk 0:01:11]} 21. a4 {[%clk 0:01:34]}  a6 {[%clk 0:01:10]} 22. h3 {[%clk 0:01:34]}  Qc7 {[%clk 0:01:10]} 23. Ba3 {[%clk 0:01:30]}  Qd6 {[%clk 0:01:04]} 24. Qe3 {[%clk 0:01:28]}  a5 {[%clk 0:00:10]} 25. Bxc5 {[%clk 0:01:23]}  Qd5 {[%clk 0:00:09]} 1-0


[Site "https://www.chess.com"]

[Event "Titled Tuesday Blitz August 1 Early 2023"]
[White "sterpfi"]
[Black "Vlassov, Nikolai"]
[BlackFideId "4103360"]
[WhiteElo "2173"]
[BlackElo "2538"]
[Result "0-1"]
[Round "1"]
[TimeControl "180+1"]
[Date "2023.08.01"]
[WhiteClock "0:00:04"]
[BlackClock "0:00:31"]
[Board "231"]

1. e4 {[%clk 0:03:00]}  Nc6 {[%clk 0:02:59]} 2. Nf3 {[%clk 0:02:58]}  d5 {[%clk 0:02:59]} 3. exd5 {[%clk 0:02:58]}  Qxd5 {[%clk 0:02:58]} 4. Nc3 {[%clk 0:02:58]}  Qa5 {[%clk 0:02:58]} 5. d4 {[%clk 0:02:49]}  Bg4 {[%clk 0:02:57]} 6. h3 {[%clk 0:02:38]}  Bxf3 {[%clk 0:02:56]} 7. Qxf3 {[%clk 0:02:39]}  O-O-O {[%clk 0:02:55]} 8. Be3 {[%clk 0:02:25]}  e5 {[%clk 0:02:54]} 9. dxe5 {[%clk 0:02:21]}  Ba3 {[%clk 0:02:39]} 10. Bb5 {[%clk 0:01:18]}  Bxb2 {[%clk 0:02:38]} 11. O-O {[%clk 0:01:18]}  Nxe5 {[%clk 0:02:14]} 12. Qf5+ {[%clk 0:01:14]}  Kb8 {[%clk 0:02:03]} 13. Qxe5 {[%clk 0:00:55]}  Bxc3 {[%clk 0:02:02]} 14. Qg5 {[%clk 0:00:55]}  Bf6 {[%clk 0:01:54]} 15. Qc5 {[%clk 0:00:29]}  Bxa1 {[%clk 0:01:35]} 16. Rxa1 {[%clk 0:00:30]}  Nf6 {[%clk 0:01:34]} 17. Rb1 {[%clk 0:00:23]}  Rd5 {[%clk 0:01:27]} 18. Qc4 {[%clk 0:00:18]}  Rhd8 {[%clk 0:01:25]} 19. Kh2 {[%clk 0:00:15]}  Rd1 {[%clk 0:00:46]} 20. Rxd1 {[%clk 0:00:15]}  Rxd1 {[%clk 0:00:46]} 21. Qxf7 {[%clk 0:00:15]}  Qxb5 {[%clk 0:00:40]} 22. Bf4 {[%clk 0:00:11]}  Qd7 {[%clk 0:00:35]} 23. Qf8+ {[%clk 0:00:10]}  Qd8 {[%clk 0:00:34]} 24. Qxg7 {[%clk 0:00:10]}  Nh5 {[%clk 0:00:32]} 25. Bxc7+ {[%clk 0:00:08]}  Qxc7+ {[%clk 0:00:31]} 26. Qxc7+ {[%clk 0:00:06]}  Kxc7 {[%clk 0:00:32]} 27. g4 {[%clk 0:00:04]}  Nf4 {[%clk 0:00:31]} 0-1


[Site "https://www.chess.com"]

[Event "Titled Tuesday Blitz August 1 Early 2023"]
[White "Dobrikov, Marco"]
[Black "Ramu, K."]
[WhiteFideId "12950378"]
[BlackFideId "5006171"]
[WhiteElo "2535"]
[BlackElo "2169"]
[Result "0-1"]
[Round "1"]
[TimeControl "180+1"]
[Date "2023.08.01"]
[WhiteClock "0:02:00"]
[BlackClock "0:02:10"]
[Board "232"]

1. d4 {[%clk 0:02:58]}  Nf6 {[%clk 0:02:58]} 2. Bf4 {[%clk 0:02:58]}  g6 {[%clk 0:02:57]} 3. e3 {[%clk 0:02:58]}  Bg7 {[%clk 0:02:57]} 4. c3 {[%clk 0:02:58]}  O-O {[%clk 0:02:56]} 5. Nd2 {[%clk 0:02:58]}  d6 {[%clk 0:02:56]} 6. Bg3 {[%clk 0:02:58]}  Nfd7 {[%clk 0:02:55]} 7. Ngf3 {[%clk 0:02:58]}  h6 {[%clk 0:02:51]} 8. Bd3 {[%clk 0:02:58]}  e5 {[%clk 0:02:48]} 9. h4 {[%clk 0:02:57]}  f5 {[%clk 0:02:46]} 10. h5 {[%clk 0:02:55]}  e4 {[%clk 0:02:46]} 11. Nxe4 {[%clk 0:02:53]}  fxe4 {[%clk 0:02:46]} 12. Bxe4 {[%clk 0:02:54]}  g5 {[%clk 0:02:43]} 13. Qb3+ {[%clk 0:02:40]}  Kh8 {[%clk 0:02:38]} 14. Bxb7 {[%clk 0:02:29]}  Bxb7 {[%clk 0:02:34]} 15. Qxb7 {[%clk 0:02:30]}  Nb6 {[%clk 0:02:34]} 16. O-O-O {[%clk 0:02:30]}  N8d7 {[%clk 0:02:28]} 17. e4 {[%clk 0:02:23]}  Rb8 {[%clk 0:02:11]} 18. Qxc7 {[%clk 0:02:00]}  Qxc7 {[%clk 0:02:10]} 0-1


[Site "https://www.chess.com"]

[Event "Titled Tuesday Blitz August 1 Early 2023"]
[White "LionKing2367890"]
[Black "Ibadov, Dashgyn"]
[BlackFideId "24107514"]
[WhiteElo "2166"]
[BlackElo "2534"]
[Result "0-1"]
[Round "1"]
[TimeControl "180+1"]
[Date "2023.08.01"]
[WhiteClock "0:00:15"]
[BlackClock "0:00:19"]
[Board "233"]

1. e4 {[%clk 0:03:00]}  e6 {[%clk 0:02:59]} 2. d4 {[%clk 0:03:00]}  d5 {[%clk 0:02:59]} 3. exd5 {[%clk 0:03:01]}  exd5 {[%clk 0:02:59]} 4. Bd3 {[%clk 0:03:01]}  c5 {[%clk 0:02:59]} 5. c3 {[%clk 0:03:00]}  Nf6 {[%clk 0:02:59]} 6. Ne2 {[%clk 0:02:59]}  Bd6 {[%clk 0:02:59]} 7. h3 {[%clk 0:02:55]}  O-O {[%clk 0:02:59]} 8. O-O {[%clk 0:02:55]}  Nc6 {[%clk 0:02:59]} 9. Bg5 {[%clk 0:02:48]}  h6 {[%clk 0:02:58]} 10. Bh4 {[%clk 0:02:47]}  Re8 {[%clk 0:02:58]} 11. Nd2 {[%clk 0:02:46]}  cxd4 {[%clk 0:02:50]} 12. cxd4 {[%clk 0:02:45]}  Be6 {[%clk 0:02:45]} 13. f4 {[%clk 0:02:44]}  Be7 {[%clk 0:02:41]} 14. Nf3 {[%clk 0:02:24]}  Ne4 {[%clk 0:02:26]} 15. Bxe7 {[%clk 0:02:23]}  Qxe7 {[%clk 0:02:27]} 16. Nc3 {[%clk 0:02:24]}  Nxc3 {[%clk 0:02:24]} 17. bxc3 {[%clk 0:02:23]}  Qd6 {[%clk 0:02:19]} 18. Ne5 {[%clk 0:02:23]}  f6 {[%clk 0:02:16]} 19. Nxc6 {[%clk 0:02:21]}  Qxc6 {[%clk 0:02:13]} 20. Qb3 {[%clk 0:02:08]}  a6 {[%clk 0:02:07]} 21. Rac1 {[%clk 0:02:03]}  Bf7 {[%clk 0:02:07]} 22. Rfe1 {[%clk 0:01:49]}  b5 {[%clk 0:02:07]} 23. Kf2 {[%clk 0:01:41]}  Qd6 {[%clk 0:02:06]} 24. g3 {[%clk 0:01:37]}  Be6 {[%clk 0:01:53]} 25. f5 {[%clk 0:01:33]}  Bd7 {[%clk 0:01:48]} 26. Rxe8+ {[%clk 0:01:27]}  Rxe8 {[%clk 0:01:47]} 27. Re1 {[%clk 0:01:28]}  Rxe1 {[%clk 0:01:47]} 28. Kxe1 {[%clk 0:01:27]}  Qxg3+ {[%clk 0:01:47]} 29. Kd2 {[%clk 0:01:27]}  Qf2+ {[%clk 0:01:36]} 30. Kc1 {[%clk 0:01:25]}  Qf3 {[%clk 0:01:27]} 31. Kd2 {[%clk 0:01:24]}  Bxf5 {[%clk 0:01:24]} 32. Bxf5 {[%clk 0:01:21]}  Qxf5 {[%clk 0:01:25]} 33. a4 {[%clk 0:01:21]}  Qd7 {[%clk 0:01:21]} 34. axb5 {[%clk 0:01:20]}  axb5 {[%clk 0:01:22]} 35. Qa3 {[%clk 0:01:14]}  Kh7 {[%clk 0:01:21]} 36. Qc5 {[%clk 0:01:12]}  f5 {[%clk 0:01:18]} 37. Qf8 {[%clk 0:01:10]}  Qe6 {[%clk 0:01:17]} 38. h4 {[%clk 0:01:02]}  Qe4 {[%clk 0:01:15]} 39. h5 {[%clk 0:01:02]}  f4 {[%clk 0:01:15]} 40. Qf7 {[%clk 0:01:00]}  f3 {[%clk 0:01:05]} 41. Kc1 {[%clk 0:01:00]}  Qg4 {[%clk 0:00:55]} 42. Kb2 {[%clk 0:00:55]}  b4 {[%clk 0:00:38]} 43. cxb4 {[%clk 0:00:51]}  Qxd4+ {[%clk 0:00:38]} 44. Kb3 {[%clk 0:00:51]}  Qd3+ {[%clk 0:00:34]} 45. Ka4 {[%clk 0:00:51]}  Qa6+ {[%clk 0:00:32]} 46. Kb3 {[%clk 0:00:51]}  Qf6 {[%clk 0:00:33]} 47. Qxd5 {[%clk 0:00:49]}  f2 {[%clk 0:00:28]} 48. Qd3+ {[%clk 0:00:49]}  Kg8 {[%clk 0:00:28]} 49. Qf1 {[%clk 0:00:45]}  Qf3+ {[%clk 0:00:28]} 50. Ka4 {[%clk 0:00:45]}  Qe3 {[%clk 0:00:28]} 51. Qc4+ {[%clk 0:00:41]}  Kf8 {[%clk 0:00:28]} 52. Qc8+ {[%clk 0:00:40]}  Kf7 {[%clk 0:00:28]} 53. Qc7+ {[%clk 0:00:33]}  Kf6 {[%clk 0:00:27]} 54. Qd6+ {[%clk 0:00:30]}  Kg5 {[%clk 0:00:25]} 55. Qd5+ {[%clk 0:00:20]}  Kg4 {[%clk 0:00:24]} 56. Qg2+ {[%clk 0:00:20]}  Kxh5 {[%clk 0:00:21]} 57. b5 {[%clk 0:00:19]}  Qf4+ {[%clk 0:00:19]} 58. Ka5 {[%clk 0:00:18]}  f1=Q {[%clk 0:00:19]} 59. Qd5+ {[%clk 0:00:15]}  Qf5 {[%clk 0:00:19]} 0-1


[Site "https://www.chess.com"]

[Event "Titled Tuesday Blitz August 1 Early 2023"]
[White "Mirzanurov, Bulat"]
[Black "Wartiovaara, Oliver"]
[WhiteFideId "4184521"]
[BlackFideId "513024"]
[WhiteElo "2164"]
[BlackElo "2533"]
[Result "0-1"]
[Round "1"]
[TimeControl "180+1"]
[Date "2023.08.01"]
[WhiteClock "0:00:14"]
[BlackClock "0:00:13"]
[Board "235"]

1. e4 {[%clk 0:02:59]}  d5 {[%clk 0:02:57]} 2. exd5 {[%clk 0:02:58]}  Qxd5 {[%clk 0:02:58]} 3. Nc3 {[%clk 0:02:58]}  Qd8 {[%clk 0:02:53]} 4. d4 {[%clk 0:02:57]}  Nf6 {[%clk 0:02:53]} 5. Nf3 {[%clk 0:02:53]}  g6 {[%clk 0:02:53]} 6. Bc4 {[%clk 0:02:47]}  Bg7 {[%clk 0:02:53]} 7. O-O {[%clk 0:02:44]}  O-O {[%clk 0:02:53]} 8. Re1 {[%clk 0:02:43]}  a6 {[%clk 0:02:53]} 9. Bf4 {[%clk 0:02:41]}  b5 {[%clk 0:02:52]} 10. Bb3 {[%clk 0:02:40]}  Bb7 {[%clk 0:02:52]} 11. Ne5 {[%clk 0:02:38]}  e6 {[%clk 0:02:47]} 12. Qd2 {[%clk 0:02:22]}  Nbd7 {[%clk 0:02:47]} 13. Rad1 {[%clk 0:02:19]}  c5 {[%clk 0:02:38]} 14. Nxd7 {[%clk 0:02:11]}  Nxd7 {[%clk 0:02:32]} 15. dxc5 {[%clk 0:01:55]}  Nxc5 {[%clk 0:02:33]} 16. Bd6 {[%clk 0:01:54]}  Nxb3 {[%clk 0:02:29]} 17. axb3 {[%clk 0:01:55]}  Re8 {[%clk 0:02:28]} 18. Ne4 {[%clk 0:01:53]}  Qb6 {[%clk 0:02:15]} 19. Qf4 {[%clk 0:01:27]}  Qc6 {[%clk 0:02:10]} 20. f3 {[%clk 0:01:22]}  Rad8 {[%clk 0:01:58]} 21. Be5 {[%clk 0:01:18]}  Rxd1 {[%clk 0:01:43]} 22. Rxd1 {[%clk 0:01:16]}  Qb6+ {[%clk 0:00:22]} 23. Kh1 {[%clk 0:01:06]}  Bxe5 {[%clk 0:00:22]} 24. Qxe5 {[%clk 0:01:06]}  Bxe4 {[%clk 0:00:16]} 25. Qxe4 {[%clk 0:01:05]}  Rd8 {[%clk 0:00:16]} 26. Rxd8+ {[%clk 0:00:53]}  Qxd8 {[%clk 0:00:17]} 27. h3 {[%clk 0:00:52]}  Qb6 {[%clk 0:00:14]} 28. h4 {[%clk 0:00:45]}  h5 {[%clk 0:00:14]} 29. b4 {[%clk 0:00:44]}  Qd6 {[%clk 0:00:13]} 30. c3 {[%clk 0:00:41]}  Kg7 {[%clk 0:00:12]} 31. f4 {[%clk 0:00:38]}  Qd1+ {[%clk 0:00:11]} 32. Kh2 {[%clk 0:00:38]}  Qd6 {[%clk 0:00:11]} 33. Kg3 {[%clk 0:00:31]}  Kf6 {[%clk 0:00:11]} 34. Kh2 {[%clk 0:00:22]}  e5 {[%clk 0:00:11]} 35. g3 {[%clk 0:00:19]}  exf4 {[%clk 0:00:11]} 36. gxf4 {[%clk 0:00:19]}  Qd2+ {[%clk 0:00:11]} 37. Kh3 {[%clk 0:00:20]}  Qd7+ {[%clk 0:00:11]} 38. Kh2 {[%clk 0:00:20]}  Qf5 {[%clk 0:00:11]} 39. Qc6+ {[%clk 0:00:19]}  Qe6 {[%clk 0:00:11]} 40. Qc7 {[%clk 0:00:18]}  Qe2+ {[%clk 0:00:11]} 41. Kh3 {[%clk 0:00:18]}  Qg4+ {[%clk 0:00:11]} 42. Kh2 {[%clk 0:00:19]}  Qxh4+ {[%clk 0:00:11]} 43. Kg2 {[%clk 0:00:19]}  Qg4+ {[%clk 0:00:12]} 44. Kh2 {[%clk 0:00:20]}  Qe2+ {[%clk 0:00:12]} 45. Kh3 {[%clk 0:00:20]}  Qe6+ {[%clk 0:00:12]} 46. Kh2 {[%clk 0:00:21]}  g5 {[%clk 0:00:12]} 47. fxg5+ {[%clk 0:00:18]}  Kxg5 {[%clk 0:00:13]} 48. Qd8+ {[%clk 0:00:18]}  Kh6 {[%clk 0:00:11]} 49. Qh8+ {[%clk 0:00:18]}  Kg5 {[%clk 0:00:11]} 50. Qg8+ {[%clk 0:00:19]}  Qg6 {[%clk 0:00:12]} 51. Qd8+ {[%clk 0:00:19]}  Qf6 {[%clk 0:00:12]} 52. Qd2+ {[%clk 0:00:14]}  Qf4+ {[%clk 0:00:13]} 0-1


[Site "https://www.chess.com"]

[Event "Titled Tuesday Blitz August 1 Early 2023"]
[White "cycygogne"]
[Black "Heinemann, Josefine"]
[BlackFideId "12900460"]
[WhiteElo "2151"]
[BlackElo "2532"]
[Result "0-1"]
[Round "1"]
[TimeControl "180+1"]
[Date "2023.08.01"]
[WhiteClock "0:00:02"]
[BlackClock "0:00:08"]
[Board "237"]

1. e4 {[%clk 0:03:00]}  c5 {[%clk 0:02:53]} 2. Nf3 {[%clk 0:03:00]}  d6 {[%clk 0:02:51]} 3. d4 {[%clk 0:02:59]}  cxd4 {[%clk 0:02:52]} 4. Nxd4 {[%clk 0:03:00]}  Nf6 {[%clk 0:02:51]} 5. Nc3 {[%clk 0:02:59]}  a6 {[%clk 0:02:51]} 6. Bg5 {[%clk 0:02:59]}  e6 {[%clk 0:02:51]} 7. Qf3 {[%clk 0:02:59]}  Be7 {[%clk 0:02:50]} 8. O-O-O {[%clk 0:02:59]}  Nbd7 {[%clk 0:02:49]} 9. Qg3 {[%clk 0:02:54]}  O-O {[%clk 0:02:39]} 10. f4 {[%clk 0:02:54]}  Qc7 {[%clk 0:02:28]} 11. Nf3 {[%clk 0:02:23]}  b5 {[%clk 0:01:42]} 12. e5 {[%clk 0:02:22]}  dxe5 {[%clk 0:01:41]} 13. fxe5 {[%clk 0:02:23]}  Nh5 {[%clk 0:01:41]} 14. Qh4 {[%clk 0:02:19]}  Bxg5+ {[%clk 0:01:41]} 15. Nxg5 {[%clk 0:02:14]}  h6 {[%clk 0:01:41]} 16. Qxh5 {[%clk 0:02:09]}  hxg5 {[%clk 0:01:40]} 17. Bd3 {[%clk 0:01:50]}  f5 {[%clk 0:01:32]} 18. exf6 {[%clk 0:01:27]}  Qf4+ {[%clk 0:01:32]} 19. Kb1 {[%clk 0:01:25]}  Nxf6 {[%clk 0:01:32]} 20. Qg6 {[%clk 0:01:17]}  Qh4 {[%clk 0:00:44]} 21. Ne4 {[%clk 0:01:00]}  Bb7 {[%clk 0:00:44]} 22. Nxg5 {[%clk 0:00:50]}  Rae8 {[%clk 0:00:36]} 23. Rhe1 {[%clk 0:00:36]}  Bd5 {[%clk 0:00:36]} 24. g3 {[%clk 0:00:20]}  Qh6 {[%clk 0:00:34]} 25. h4 {[%clk 0:00:20]}  Qxg6 {[%clk 0:00:17]} 26. Bxg6 {[%clk 0:00:21]}  Re7 {[%clk 0:00:17]} 27. h5 {[%clk 0:00:18]}  Rd8 {[%clk 0:00:17]} 28. Kc1 {[%clk 0:00:16]}  a5 {[%clk 0:00:16]} 29. g4 {[%clk 0:00:14]}  a4 {[%clk 0:00:16]} 30. Rxd5 {[%clk 0:00:12]}  Rxd5 {[%clk 0:00:15]} 31. Nxe6 {[%clk 0:00:10]}  Rd6 {[%clk 0:00:10]} 32. Bf5 {[%clk 0:00:10]}  Nd7 {[%clk 0:00:08]} 33. g5 {[%clk 0:00:09]}  Nf8 {[%clk 0:00:09]} 34. h6 {[%clk 0:00:07]}  Nxe6 {[%clk 0:00:09]} 35. h7+ {[%clk 0:00:07]}  Kh8 {[%clk 0:00:09]} 36. g6 {[%clk 0:00:07]}  Re8 {[%clk 0:00:08]} 37. c3 {[%clk 0:00:07]}  Nc7 {[%clk 0:00:08]} 38. Rf1 {[%clk 0:00:06]}  Rf6 {[%clk 0:00:08]} 39. Kc2 {[%clk 0:00:02]}  Ref8 {[%clk 0:00:08]} 0-1


[Site "https://www.chess.com"]

[Event "Titled Tuesday Blitz August 1 Early 2023"]
[White "Vila Dupla, Aurelio"]
[Black "Thecourseoisildur"]
[WhiteFideId "2203383"]
[WhiteElo "2134"]
[BlackElo "2532"]
[Result "0-1"]
[Round "1"]
[TimeControl "180+1"]
[Date "2023.08.01"]
[WhiteClock "0:00:28"]
[BlackClock "0:01:19"]
[Board "239"]

1. Nf3 {[%clk 0:02:58]}  Nf6 {[%clk 0:02:55]} 2. d4 {[%clk 0:02:57]}  g6 {[%clk 0:02:55]} 3. g3 {[%clk 0:02:55]}  Bg7 {[%clk 0:02:55]} 4. Bg2 {[%clk 0:02:55]}  O-O {[%clk 0:02:55]} 5. O-O {[%clk 0:02:55]}  d5 {[%clk 0:02:55]} 6. c4 {[%clk 0:02:54]}  dxc4 {[%clk 0:02:54]} 7. Na3 {[%clk 0:02:49]}  c3 {[%clk 0:02:54]} 8. bxc3 {[%clk 0:02:49]}  c5 {[%clk 0:02:55]} 9. Bb2 {[%clk 0:02:47]}  Nc6 {[%clk 0:02:55]} 10. Re1 {[%clk 0:02:46]}  Qb6 {[%clk 0:02:55]} 11. Rb1 {[%clk 0:02:44]}  Be6 {[%clk 0:02:31]} 12. Qa4 {[%clk 0:02:27]}  Bxa2 {[%clk 0:02:23]} 13. Nc4 {[%clk 0:01:49]}  Qa6 {[%clk 0:02:22]} 14. Qxa6 {[%clk 0:01:47]}  bxa6 {[%clk 0:02:23]} 15. Nce5 {[%clk 0:01:44]}  Bxb1 {[%clk 0:02:23]} 16. Nxc6 {[%clk 0:01:35]}  Be4 {[%clk 0:02:22]} 17. Nxe7+ {[%clk 0:01:35]}  Kh8 {[%clk 0:02:23]} 18. Ne5 {[%clk 0:01:27]}  Rae8 {[%clk 0:01:56]} 19. N7c6 {[%clk 0:01:21]}  Bxg2 {[%clk 0:01:54]} 20. Kxg2 {[%clk 0:01:19]}  Nd5 {[%clk 0:01:46]} 21. Nd7 {[%clk 0:01:11]}  cxd4 {[%clk 0:01:39]} 22. c4 {[%clk 0:01:01]}  Nc3 {[%clk 0:01:31]} 23. Nxf8 {[%clk 0:01:00]}  Rxf8 {[%clk 0:01:32]} 24. e3 {[%clk 0:00:56]}  d3 {[%clk 0:01:25]} 25. Nd4 {[%clk 0:00:33]}  d2 {[%clk 0:01:19]} 26. Bxc3 {[%clk 0:00:32]}  dxe1=Q {[%clk 0:01:19]} 27. Bxe1 {[%clk 0:00:28]}  Rc8 {[%clk 0:01:19]} 0-1


[Site "https://www.chess.com"]

[Event "Titled Tuesday Blitz August 1 Early 2023"]
[White "Ortega Amarelle, Mariano"]
[Black "Feliz Dotel, Dewar Bienvenido"]
[WhiteFideId "3504301"]
[BlackFideId "6402801"]
[WhiteElo "2529"]
[BlackElo "2112"]
[Result "0-1"]
[Round "1"]
[TimeControl "180+1"]
[Date "2023.08.01"]
[WhiteClock "0:00:05"]
[BlackClock "0:00:08"]
[Board "242"]

1. c4 {[%clk 0:03:00]}  e6 {[%clk 0:02:59]} 2. Nc3 {[%clk 0:02:57]}  d5 {[%clk 0:02:59]} 3. d4 {[%clk 0:02:57]}  c5 {[%clk 0:02:58]} 4. cxd5 {[%clk 0:02:54]}  exd5 {[%clk 0:02:59]} 5. Nf3 {[%clk 0:02:52]}  Nf6 {[%clk 0:02:59]} 6. Bg5 {[%clk 0:02:52]}  c4 {[%clk 0:02:53]} 7. e3 {[%clk 0:02:46]}  Nc6 {[%clk 0:02:48]} 8. Be2 {[%clk 0:02:46]}  Be7 {[%clk 0:02:46]} 9. O-O {[%clk 0:02:45]}  O-O {[%clk 0:02:45]} 10. b3 {[%clk 0:02:46]}  Qa5 {[%clk 0:02:12]} 11. Bxf6 {[%clk 0:02:09]}  Bxf6 {[%clk 0:02:10]} 12. Rc1 {[%clk 0:02:05]}  cxb3 {[%clk 0:02:04]} 13. Qxb3 {[%clk 0:02:06]}  Ne7 {[%clk 0:01:31]} 14. h3 {[%clk 0:01:51]}  Rb8 {[%clk 0:01:26]} 15. Bd3 {[%clk 0:01:33]}  Be6 {[%clk 0:01:24]} 16. Na4 {[%clk 0:01:25]}  b6 {[%clk 0:00:57]} 17. Qb5 {[%clk 0:01:14]}  Qxb5 {[%clk 0:00:53]} 18. Bxb5 {[%clk 0:01:15]}  Bf5 {[%clk 0:00:49]} 19. Ba6 {[%clk 0:01:09]}  Bc8 {[%clk 0:00:47]} 20. Bxc8 {[%clk 0:01:03]}  Rfxc8 {[%clk 0:00:47]} 21. Nd2 {[%clk 0:00:42]}  Kf8 {[%clk 0:00:44]} 22. f4 {[%clk 0:00:21]}  Ke8 {[%clk 0:00:43]} 23. g4 {[%clk 0:00:20]}  h6 {[%clk 0:00:41]} 24. Kf2 {[%clk 0:00:20]}  g6 {[%clk 0:00:38]} 25. Ke2 {[%clk 0:00:21]}  Kd7 {[%clk 0:00:37]} 26. Kd3 {[%clk 0:00:21]}  Nc6 {[%clk 0:00:26]} 27. a3 {[%clk 0:00:18]}  Na5 {[%clk 0:00:21]} 28. Nc3 {[%clk 0:00:15]}  Ke6 {[%clk 0:00:16]} 29. f5+ {[%clk 0:00:14]}  gxf5 {[%clk 0:00:16]} 30. gxf5+ {[%clk 0:00:15]}  Kd6 {[%clk 0:00:16]} 31. Nb5+ {[%clk 0:00:15]}  Ke7 {[%clk 0:00:13]} 32. Nxa7 {[%clk 0:00:15]}  Rxc1 {[%clk 0:00:12]} 33. Rxc1 {[%clk 0:00:16]}  Rb7 {[%clk 0:00:12]} 34. Nc6+ {[%clk 0:00:14]}  Kd6 {[%clk 0:00:07]} 35. Nb4 {[%clk 0:00:13]}  Bg5 {[%clk 0:00:06]} 36. Nf3 {[%clk 0:00:12]}  Bf6 {[%clk 0:00:04]} 37. Rc8 {[%clk 0:00:10]}  Nc4 {[%clk 0:00:04]} 38. e4 {[%clk 0:00:09]}  dxe4+ {[%clk 0:00:04]} 39. Kxe4 {[%clk 0:00:09]}  Kd7 {[%clk 0:00:04]} 40. Rf8 {[%clk 0:00:08]}  Ke7 {[%clk 0:00:04]} 41. Rc8 {[%clk 0:00:07]}  Nd6+ {[%clk 0:00:04]} 42. Kd5 {[%clk 0:00:07]}  Nxc8 {[%clk 0:00:05]} 43. Nc6+ {[%clk 0:00:07]}  Kd7 {[%clk 0:00:05]} 44. Nfe5+ {[%clk 0:00:07]}  Bxe5 {[%clk 0:00:05]} 45. dxe5 {[%clk 0:00:08]}  Ne7+ {[%clk 0:00:06]} 46. Nxe7 {[%clk 0:00:07]}  Kxe7 {[%clk 0:00:07]} 47. Kc6 {[%clk 0:00:08]}  Rb8 {[%clk 0:00:07]} 48. Kc7 {[%clk 0:00:05]}  Ra8 {[%clk 0:00:08]} 0-1


[Site "https://www.chess.com"]